[Event "Early Titled Tuesday Blitz | February 8 2022"]
[White "Kovanova, Baira"]
[Black "Sargsyan, Anna M."]
[WhiteFideId "4164083"]
[BlackFideId "13308130"]
[WhiteElo "2190"]
[BlackElo "2271"]
[Result "1-0"]
[Round "10"]
[TimeControl "180+1"]
[Date "2022.02.08"]
[WhiteClock "0:00:12"]
[BlackClock "0:00:03"]

1. e4 {[%clk 0:03:00]}  e5 {[%clk 0:02:58]} 2. Nf3 {[%clk 0:02:59]}  Nc6 {[%clk 0:02:59]} 3. Bb5 {[%clk 0:02:59]}  a6 {[%clk 0:02:59]} 4. Ba4 {[%clk 0:02:59]}  Nf6 {[%clk 0:02:59]} 5. O-O {[%clk 0:02:59]}  Nxe4 {[%clk 0:03:00]} 6. d4 {[%clk 0:02:58]}  b5 {[%clk 0:02:59]} 7. Bb3 {[%clk 0:02:57]}  d5 {[%clk 0:03:00]} 8. dxe5 {[%clk 0:02:58]}  Be6 {[%clk 0:03:00]} 9. Qe2 {[%clk 0:02:58]}  Nc5 {[%clk 0:02:59]} 10. Rd1 {[%clk 0:02:58]}  Nxb3 {[%clk 0:02:59]} 11. cxb3 {[%clk 0:02:57]}  Be7 {[%clk 0:03:00]} 12. Nc3 {[%clk 0:02:57]}  O-O {[%clk 0:02:54]} 13. Be3 {[%clk 0:02:57]}  Na5 {[%clk 0:02:49]} 14. Ne4 {[%clk 0:02:32]}  h6 {[%clk 0:02:24]} 15. Rac1 {[%clk 0:02:26]}  c6 {[%clk 0:02:16]} 16. Bc5 {[%clk 0:02:04]}  Nb7 {[%clk 0:02:04]} 17. b4 {[%clk 0:02:04]}  a5 {[%clk 0:01:58]} 18. a3 {[%clk 0:01:43]}  axb4 {[%clk 0:01:58]} 19. axb4 {[%clk 0:01:44]}  Ra2 {[%clk 0:01:58]} 20. Bxe7 {[%clk 0:01:40]}  Qxe7 {[%clk 0:01:57]} 21. Nc5 {[%clk 0:01:40]}  Rfa8 {[%clk 0:01:55]} 22. Nd4 {[%clk 0:01:39]}  Nd8 {[%clk 0:01:50]} 23. h3 {[%clk 0:01:38]}  Bc8 {[%clk 0:01:35]} 24. Nd3 {[%clk 0:01:33]}  Bb7 {[%clk 0:01:31]} 25. Nc5 {[%clk 0:01:32]}  Bc8 {[%clk 0:01:30]} 26. f4 {[%clk 0:01:32]}  Qh4 {[%clk 0:01:22]} 27. f5 {[%clk 0:01:18]}  R2a7 {[%clk 0:00:51]} 28. e6 {[%clk 0:00:51]}  Re7 {[%clk 0:00:48]} 29. Qe3 {[%clk 0:00:49]}  Qf6 {[%clk 0:00:39]} 30. Re1 {[%clk 0:00:43]}  Ra2 {[%clk 0:00:28]} 31. Rc2 {[%clk 0:00:35]}  Kh7 {[%clk 0:00:14]} 32. Rf2 {[%clk 0:00:35]}  Raa7 {[%clk 0:00:06]} 33. Qd2 {[%clk 0:00:22]}  Rac7 {[%clk 0:00:06]} 34. g4 {[%clk 0:00:19]}  Nb7 {[%clk 0:00:06]} 35. Na6 {[%clk 0:00:15]}  Nd6 {[%clk 0:00:05]} 36. Nxc7 {[%clk 0:00:15]}  Rxc7 {[%clk 0:00:05]} 37. Qd3 {[%clk 0:00:13]}  Ne4 {[%clk 0:00:05]} 38. Rxe4 {[%clk 0:00:13]}  dxe4 {[%clk 0:00:05]} 39. Qxe4 {[%clk 0:00:14]}  c5 {[%clk 0:00:05]} 40. bxc5 {[%clk 0:00:14]}  Bb7 {[%clk 0:00:02]} 41. c6 {[%clk 0:00:13]}  Bxc6 {[%clk 0:00:01]} 42. Nxc6 {[%clk 0:00:13]}  fxe6 {[%clk 0:00:01]} 43. fxe6+ {[%clk 0:00:13]}  Qg6 {[%clk 0:00:02]} 44. Qxg6+ {[%clk 0:00:12]}  Kxg6 {[%clk 0:00:03]} 45. e7 {[%clk 0:00:12]} 1-0


[Site "https://www.chess.com"]

[Event "Early Titled Tuesday Blitz | February 8 2022"]
[White "Kukula, Pawel"]
[Black "Golsta, Madara"]
[WhiteFideId "1115081"]
[BlackFideId "11607386"]
[WhiteElo "2203"]
[BlackElo "1997"]
[Result "1-0"]
[Round "10"]
[TimeControl "180+1"]
[Date "2022.02.08"]
[WhiteClock "0:00:10"]
[BlackClock "0:00:06"]

1. Nc3 {[%clk 0:02:59]}  Nf6 {[%clk 0:02:58]} 2. e4 {[%clk 0:02:57]}  e5 {[%clk 0:02:58]} 3. Bc4 {[%clk 0:02:54]}  Nc6 {[%clk 0:02:55]} 4. d3 {[%clk 0:02:54]}  Bc5 {[%clk 0:02:49]} 5. Be3 {[%clk 0:02:53]}  Bb6 {[%clk 0:02:48]} 6. Qd2 {[%clk 0:02:41]}  O-O {[%clk 0:02:45]} 7. O-O-O {[%clk 0:02:41]}  Ne7 {[%clk 0:02:35]} 8. Nf3 {[%clk 0:02:36]}  c6 {[%clk 0:02:10]} 9. d4 {[%clk 0:02:19]}  Ng6 {[%clk 0:01:41]} 10. dxe5 {[%clk 0:02:15]}  Ng4 {[%clk 0:01:40]} 11. Bg5 {[%clk 0:02:09]}  Qe8 {[%clk 0:01:40]} 12. Rhf1 {[%clk 0:01:44]}  N4xe5 {[%clk 0:01:39]} 13. Bb3 {[%clk 0:01:40]}  d6 {[%clk 0:01:03]} 14. Qxd6 {[%clk 0:01:36]}  Bg4 {[%clk 0:01:03]} 15. Nxe5 {[%clk 0:01:25]}  Nxe5 {[%clk 0:01:03]} 16. f3 {[%clk 0:01:22]}  Bh5 {[%clk 0:00:53]} 17. Be7 {[%clk 0:01:18]}  Ng6 {[%clk 0:00:38]} 18. Bxf8 {[%clk 0:01:16]}  Nxf8 {[%clk 0:00:39]} 19. g4 {[%clk 0:01:04]}  Bg6 {[%clk 0:00:39]} 20. h4 {[%clk 0:01:01]}  h5 {[%clk 0:00:37]} 21. Kb1 {[%clk 0:00:47]}  a5 {[%clk 0:00:34]} 22. a4 {[%clk 0:00:33]}  Be3 {[%clk 0:00:33]} 23. Rd3 {[%clk 0:00:27]}  Bb6 {[%clk 0:00:27]} 24. gxh5 {[%clk 0:00:26]}  Bxh5 {[%clk 0:00:27]} 25. f4 {[%clk 0:00:25]}  Rd8 {[%clk 0:00:17]} 26. Qe5 {[%clk 0:00:25]}  Qxe5 {[%clk 0:00:16]} 27. fxe5 {[%clk 0:00:25]}  Re8 {[%clk 0:00:16]} 28. Rf5 {[%clk 0:00:22]}  Bg6 {[%clk 0:00:16]} 29. Rg5 {[%clk 0:00:23]}  Bd8 {[%clk 0:00:15]} 30. Rg4 {[%clk 0:00:21]}  Bc7 {[%clk 0:00:15]} 31. Ka2 {[%clk 0:00:18]}  Bxe5 {[%clk 0:00:14]} 32. Rg5 {[%clk 0:00:18]}  Bf6 {[%clk 0:00:14]} 33. Rg4 {[%clk 0:00:18]}  Kh8 {[%clk 0:00:09]} 34. Rdg3 {[%clk 0:00:17]}  Bh5 {[%clk 0:00:06]} 35. Rg5 {[%clk 0:00:16]}  Bxg5 {[%clk 0:00:06]} 36. hxg5 {[%clk 0:00:17]}  Bg6 {[%clk 0:00:06]} 37. Rg4 {[%clk 0:00:16]}  Kg8 {[%clk 0:00:06]} 38. Rf4 {[%clk 0:00:17]}  Ne6 {[%clk 0:00:05]} 39. Rg4 {[%clk 0:00:15]}  Nd4 {[%clk 0:00:04]} 40. Bc4 {[%clk 0:00:15]}  Nxc2 {[%clk 0:00:03]} 41. Bd3 {[%clk 0:00:15]}  Nb4+ {[%clk 0:00:03]} 42. Kb3 {[%clk 0:00:15]}  Nxd3 {[%clk 0:00:04]} 43. Rg3 {[%clk 0:00:15]}  Ne5 {[%clk 0:00:04]} 44. Rg1 {[%clk 0:00:11]}  Nd3 {[%clk 0:00:04]} 45. Rg3 {[%clk 0:00:10]}  Nc5+ {[%clk 0:00:04]} 46. Kc4 {[%clk 0:00:10]}  Nxe4 {[%clk 0:00:04]} 47. Nxe4 {[%clk 0:00:08]}  Rxe4+ {[%clk 0:00:03]} 48. Kc5 {[%clk 0:00:09]}  Rxa4 {[%clk 0:00:03]} 49. Kb6 {[%clk 0:00:09]}  Rb4+ {[%clk 0:00:04]} 50. Kc7 {[%clk 0:00:10]}  Rxb2 {[%clk 0:00:05]} 51. Kd8 {[%clk 0:00:10]}  a4 {[%clk 0:00:06]} 52. Ra3 {[%clk 0:00:10]}  Rb3 {[%clk 0:00:05]} 53. Rxa4 {[%clk 0:00:10]}  Rg3 {[%clk 0:00:06]} 54. Ra8 {[%clk 0:00:10]} 1-0


[Site "https://www.chess.com"]

[Event "Early Titled Tuesday Blitz | February 8 2022"]
[White "Le Ruyet, Leopold"]
[Black "Mekhitarian, Krikor Sevag"]
[WhiteFideId "645923"]
[BlackFideId "2107660"]
[WhiteElo "2276"]
[BlackElo "2598"]
[Result "0-1"]
[Round "10"]
[TimeControl "180+1"]
[Date "2022.02.08"]
[WhiteClock "0:00:07"]
[BlackClock "0:00:23"]

1. d4 {[%clk 0:03:00]}  Nf6 {[%clk 0:02:52]} 2. c4 {[%clk 0:03:00]}  g6 {[%clk 0:02:51]} 3. Nc3 {[%clk 0:03:01]}  d5 {[%clk 0:02:50]} 4. cxd5 {[%clk 0:02:54]}  Nxd5 {[%clk 0:02:51]} 5. Na4 {[%clk 0:02:55]}  e5 {[%clk 0:02:23]} 6. dxe5 {[%clk 0:02:51]}  Bb4+ {[%clk 0:02:22]} 7. Bd2 {[%clk 0:02:51]}  Ne3 {[%clk 0:02:22]} 8. fxe3 {[%clk 0:02:09]}  Bxd2+ {[%clk 0:02:21]} 9. Qxd2 {[%clk 0:02:10]}  Qh4+ {[%clk 0:02:21]} 10. g3 {[%clk 0:02:10]}  Qxa4 {[%clk 0:02:22]} 11. Qd4 {[%clk 0:02:09]}  Qa5+ {[%clk 0:02:12]} 12. Qc3 {[%clk 0:02:02]}  Qxc3+ {[%clk 0:02:11]} 13. bxc3 {[%clk 0:02:03]}  Nc6 {[%clk 0:02:08]} 14. Nf3 {[%clk 0:02:03]}  Ke7 {[%clk 0:02:06]} 15. Rb1 {[%clk 0:01:57]}  Rd8 {[%clk 0:02:03]} 16. Bg2 {[%clk 0:01:53]}  Rb8 {[%clk 0:02:03]} 17. Kf2 {[%clk 0:01:42]}  b6 {[%clk 0:02:01]} 18. h4 {[%clk 0:01:19]}  h6 {[%clk 0:02:01]} 19. Rhc1 {[%clk 0:01:06]}  Be6 {[%clk 0:01:56]} 20. c4 {[%clk 0:01:04]}  Rd7 {[%clk 0:01:22]} 21. c5 {[%clk 0:00:52]}  b5 {[%clk 0:01:22]} 22. a3 {[%clk 0:00:45]}  a6 {[%clk 0:01:22]} 23. h5 {[%clk 0:00:34]}  g5 {[%clk 0:01:21]} 24. Nxg5 {[%clk 0:00:34]}  Nxe5 {[%clk 0:01:10]} 25. Nxe6 {[%clk 0:00:29]}  fxe6 {[%clk 0:01:09]} 26. Be4 {[%clk 0:00:22]}  Rf8+ {[%clk 0:01:07]} 27. Kg2 {[%clk 0:00:20]}  Rd2 {[%clk 0:00:59]} 28. Re1 {[%clk 0:00:20]}  Ng4 {[%clk 0:00:52]} 29. Rb3 {[%clk 0:00:19]}  Rf2+ {[%clk 0:00:48]} 30. Kh3 {[%clk 0:00:19]}  Nf6 {[%clk 0:00:49]} 31. Bg6 {[%clk 0:00:18]}  Rfxe2 {[%clk 0:00:38]} 32. Rxe2 {[%clk 0:00:19]}  Rxe2 {[%clk 0:00:39]} 33. g4 {[%clk 0:00:19]}  Nd5 {[%clk 0:00:40]} 34. g5 {[%clk 0:00:15]}  hxg5 {[%clk 0:00:38]} 35. Kg4 {[%clk 0:00:15]}  Kf6 {[%clk 0:00:37]} 36. e4 {[%clk 0:00:16]}  Rg2+ {[%clk 0:00:31]} 37. Kf3 {[%clk 0:00:14]}  Nf4 {[%clk 0:00:31]} 38. Be8 {[%clk 0:00:10]}  Ke5 {[%clk 0:00:24]} 39. Rb1 {[%clk 0:00:07]}  g4+ {[%clk 0:00:23]} 40. Ke3 {[%clk 0:00:07]}  Re2# {[%clk 0:00:23]} 0-1


[Site "https://www.chess.com"]

[Event "Early Titled Tuesday Blitz | February 8 2022"]
[White "Lehtosaari, Mauri"]
[Black "Gombocz, Ferenc Jr."]
[WhiteFideId "501999"]
[BlackFideId "775029"]
[WhiteElo "2448"]
[BlackElo "1913"]
[Result "1-0"]
[Round "10"]
[TimeControl "180+1"]
[Date "2022.02.08"]
[WhiteClock "0:00:43"]
[BlackClock "0:01:33"]

1. d4 {[%clk 0:03:00]}  d5 {[%clk 0:02:59]} 2. Nf3 {[%clk 0:03:00]}  Nf6 {[%clk 0:02:59]} 3. Bg5 {[%clk 0:03:01]}  Ne4 {[%clk 0:02:58]} 4. Bf4 {[%clk 0:03:01]}  c5 {[%clk 0:02:58]} 5. e3 {[%clk 0:03:02]}  Nc6 {[%clk 0:02:58]} 6. c3 {[%clk 0:03:02]}  Qb6 {[%clk 0:02:58]} 7. Qb3 {[%clk 0:03:01]}  c4 {[%clk 0:02:58]} 8. Qxb6 {[%clk 0:03:01]}  axb6 {[%clk 0:02:57]} 9. Nfd2 {[%clk 0:03:02]}  Nxd2 {[%clk 0:02:50]} 10. Nxd2 {[%clk 0:03:02]}  b5 {[%clk 0:02:51]} 11. e4 {[%clk 0:03:00]}  e6 {[%clk 0:02:50]} 12. Be2 {[%clk 0:03:00]}  b4 {[%clk 0:02:50]} 13. Bf3 {[%clk 0:02:59]}  bxc3 {[%clk 0:02:48]} 14. bxc3 {[%clk 0:02:59]}  Ra5 {[%clk 0:02:44]} 15. O-O {[%clk 0:02:43]}  f5 {[%clk 0:02:41]} 16. exd5 {[%clk 0:02:37]}  exd5 {[%clk 0:02:41]} 17. Rfb1 {[%clk 0:02:26]}  Kd8 {[%clk 0:02:28]} 18. a4 {[%clk 0:02:21]}  Be7 {[%clk 0:02:18]} 19. Rb5 {[%clk 0:02:13]}  g5 {[%clk 0:02:13]} 20. Rxa5 {[%clk 0:02:01]}  Nxa5 {[%clk 0:02:05]} 21. Be5 {[%clk 0:02:01]}  Rf8 {[%clk 0:02:04]} 22. Bxd5 {[%clk 0:02:00]}  Bf6 {[%clk 0:01:55]} 23. Nxc4 {[%clk 0:01:44]}  Nxc4 {[%clk 0:01:48]} 24. Bxc4 {[%clk 0:01:45]}  Bxe5 {[%clk 0:01:48]} 25. dxe5 {[%clk 0:01:46]}  Re8 {[%clk 0:01:47]} 26. Re1 {[%clk 0:01:32]}  Re7 {[%clk 0:01:47]} 27. Bd5 {[%clk 0:01:26]}  Rc7 {[%clk 0:01:46]} 28. c4 {[%clk 0:01:26]}  Rc5 {[%clk 0:01:45]} 29. e6 {[%clk 0:01:23]}  Ke7 {[%clk 0:01:44]} 30. f4 {[%clk 0:01:16]}  gxf4 {[%clk 0:01:43]} 31. Re5 {[%clk 0:01:16]}  Ra5 {[%clk 0:01:42]} 32. Rxf5 {[%clk 0:01:12]}  Rxa4 {[%clk 0:01:36]} 33. Rxf4 {[%clk 0:01:09]}  Bxe6 {[%clk 0:01:35]} 34. Re4 {[%clk 0:01:09]}  Ra6 {[%clk 0:01:35]} 35. Kf2 {[%clk 0:01:06]}  Kf6 {[%clk 0:01:34]} 36. Rxe6+ {[%clk 0:00:48]}  Rxe6 {[%clk 0:01:33]} 37. Bxe6 {[%clk 0:00:48]}  Kxe6 {[%clk 0:01:34]} 38. Ke3 {[%clk 0:00:49]}  Ke5 {[%clk 0:01:35]} 39. g4 {[%clk 0:00:45]}  h6 {[%clk 0:01:33]} 40. h3 {[%clk 0:00:43]}  b6 {[%clk 0:01:33]} 41. h4 {[%clk 0:00:43]} 1-0


[Site "https://www.chess.com"]

[Event "Early Titled Tuesday Blitz | February 8 2022"]
[White "Loay, Sameer"]
[Black "Iskusnyh, Sergei"]
[WhiteFideId "8104239"]
[BlackFideId "4120027"]
[WhiteElo "2040"]
[BlackElo "2492"]
[Result "1/2-1/2"]
[Round "10"]
[TimeControl "180+1"]
[Date "2022.02.08"]
[WhiteClock "0:00:41"]
[BlackClock "0:00:11"]

1. Nf3 {[%clk 0:03:00]}  d5 {[%clk 0:02:59]} 2. g3 {[%clk 0:03:01]}  Nf6 {[%clk 0:02:59]} 3. Bg2 {[%clk 0:03:02]}  c6 {[%clk 0:02:59]} 4. O-O {[%clk 0:03:03]}  Bf5 {[%clk 0:03:00]} 5. d3 {[%clk 0:03:04]}  e6 {[%clk 0:03:00]} 6. Nbd2 {[%clk 0:03:04]}  h6 {[%clk 0:03:00]} 7. b3 {[%clk 0:03:05]}  Be7 {[%clk 0:02:59]} 8. Bb2 {[%clk 0:03:05]}  O-O {[%clk 0:02:58]} 9. Qe1 {[%clk 0:03:04]}  a5 {[%clk 0:02:57]} 10. e4 {[%clk 0:03:03]}  Bh7 {[%clk 0:02:57]} 11. a4 {[%clk 0:03:03]}  Na6 {[%clk 0:02:55]} 12. Ne5 {[%clk 0:03:04]}  Nb4 {[%clk 0:02:52]} 13. Rc1 {[%clk 0:03:05]}  Nd7 {[%clk 0:02:49]} 14. Qe2 {[%clk 0:03:02]}  Nxe5 {[%clk 0:02:28]} 15. Bxe5 {[%clk 0:03:03]}  Bf6 {[%clk 0:02:26]} 16. Bxf6 {[%clk 0:03:01]}  Qxf6 {[%clk 0:02:26]} 17. e5 {[%clk 0:03:02]}  Qe7 {[%clk 0:02:19]} 18. Kh1 {[%clk 0:03:01]}  b5 {[%clk 0:02:16]} 19. f4 {[%clk 0:02:58]}  bxa4 {[%clk 0:02:12]} 20. bxa4 {[%clk 0:02:59]}  Rab8 {[%clk 0:02:04]} 21. Nb3 {[%clk 0:02:47]}  Nxd3 {[%clk 0:02:00]} 22. cxd3 {[%clk 0:01:54]}  Rxb3 {[%clk 0:01:58]} 23. Qc2 {[%clk 0:01:54]}  Rxd3 {[%clk 0:01:49]} 24. f5 {[%clk 0:01:54]}  Qa3 {[%clk 0:01:40]} 25. g4 {[%clk 0:01:47]}  Rd4 {[%clk 0:01:20]} 26. Qxc6 {[%clk 0:01:40]}  Qxa4 {[%clk 0:01:08]} 27. Qd6 {[%clk 0:01:23]}  Qe8 {[%clk 0:00:58]} 28. Rc7 {[%clk 0:01:20]}  Rxg4 {[%clk 0:00:52]} 29. Re7 {[%clk 0:01:18]}  Qc8 {[%clk 0:00:44]} 30. Rc7 {[%clk 0:01:11]}  Qe8 {[%clk 0:00:23]} 31. fxe6 {[%clk 0:00:51]}  Qxe6 {[%clk 0:00:20]} 32. Bxd5 {[%clk 0:00:52]}  Qxd5+ {[%clk 0:00:17]} 33. Qxd5 {[%clk 0:00:51]}  Be4+ {[%clk 0:00:18]} 34. Qxe4 {[%clk 0:00:52]}  Rxe4 {[%clk 0:00:18]} 35. Rc5 {[%clk 0:00:50]}  Re8 {[%clk 0:00:18]} 36. Rxa5 {[%clk 0:00:50]}  g6 {[%clk 0:00:18]} 37. Ra7 {[%clk 0:00:50]}  Rf8 {[%clk 0:00:17]} 38. Re7 {[%clk 0:00:50]}  g5 {[%clk 0:00:17]} 39. Rf6 {[%clk 0:00:45]}  Kg7 {[%clk 0:00:17]} 40. Rf5 {[%clk 0:00:44]}  Rf4 {[%clk 0:00:15]} 41. Rxf4 {[%clk 0:00:44]}  gxf4 {[%clk 0:00:16]} 42. Kg2 {[%clk 0:00:45]}  Kg6 {[%clk 0:00:16]} 43. e6 {[%clk 0:00:44]}  fxe6 {[%clk 0:00:10]} 44. Rxe6+ {[%clk 0:00:45]}  Kg5 {[%clk 0:00:10]} 45. Kf3 {[%clk 0:00:44]}  Rf5 {[%clk 0:00:11]} 46. h4+ {[%clk 0:00:43]}  Kh5 {[%clk 0:00:10]} 47. Ra6 {[%clk 0:00:39]}  Rb5 {[%clk 0:00:09]} 48. Kxf4 {[%clk 0:00:38]}  Rb4+ {[%clk 0:00:10]} 49. Kg3 {[%clk 0:00:38]}  Rg4+ {[%clk 0:00:10]} 50. Kf3 {[%clk 0:00:38]}  Rxh4 {[%clk 0:00:10]} 51. Ra5+ {[%clk 0:00:38]}  Kg6 {[%clk 0:00:10]} 52. Kg3 {[%clk 0:00:39]}  Re4 {[%clk 0:00:10]} 53. Ra6+ {[%clk 0:00:39]}  Kg5 {[%clk 0:00:09]} 54. Ra5+ {[%clk 0:00:40]}  Kg6 {[%clk 0:00:10]} 55. Ra6+ {[%clk 0:00:40]}  Kg5 {[%clk 0:00:10]} 56. Ra5+ {[%clk 0:00:41]}  Kg6 {[%clk 0:00:11]} 1/2-1/2


[Site "https://www.chess.com"]

[Event "Early Titled Tuesday Blitz | February 8 2022"]
[White "Lopez Gracia, Fernando"]
[Black "Khamdamova, Afruza"]
[WhiteFideId "2207184"]
[BlackFideId "14210444"]
[WhiteElo "2417"]
[BlackElo "1660"]
[Result "1-0"]
[Round "10"]
[TimeControl "180+1"]
[Date "2022.02.08"]
[WhiteClock "0:01:21"]
[BlackClock "0:00:24"]

1. c4 {[%clk 0:03:00]}  Nf6 {[%clk 0:02:59]} 2. Nc3 {[%clk 0:02:57]}  e6 {[%clk 0:02:59]} 3. e4 {[%clk 0:02:55]}  d5 {[%clk 0:02:59]} 4. cxd5 {[%clk 0:02:56]}  exd5 {[%clk 0:02:58]} 5. e5 {[%clk 0:02:56]}  Ne4 {[%clk 0:02:58]} 6. Nf3 {[%clk 0:02:56]}  Bc5 {[%clk 0:02:54]} 7. d4 {[%clk 0:02:48]}  Bb4 {[%clk 0:02:52]} 8. Bd2 {[%clk 0:02:48]}  Nc6 {[%clk 0:02:47]} 9. Bb5 {[%clk 0:02:46]}  Nxd2 {[%clk 0:02:32]} 10. Qxd2 {[%clk 0:02:45]}  O-O {[%clk 0:02:31]} 11. O-O {[%clk 0:02:44]}  Bg4 {[%clk 0:02:30]} 12. Ne1 {[%clk 0:02:37]}  a6 {[%clk 0:02:17]} 13. Bxc6 {[%clk 0:02:36]}  bxc6 {[%clk 0:02:17]} 14. Nd3 {[%clk 0:02:37]}  Be7 {[%clk 0:02:15]} 15. h3 {[%clk 0:02:37]}  Bf5 {[%clk 0:02:15]} 16. g4 {[%clk 0:02:36]}  Bxd3 {[%clk 0:02:14]} 17. Qxd3 {[%clk 0:02:37]}  Rb8 {[%clk 0:02:13]} 18. b3 {[%clk 0:02:36]}  a5 {[%clk 0:02:08]} 19. Rac1 {[%clk 0:02:34]}  f6 {[%clk 0:02:03]} 20. f4 {[%clk 0:02:31]}  fxe5 {[%clk 0:02:02]} 21. fxe5 {[%clk 0:02:32]}  Bg5 {[%clk 0:02:00]} 22. Rce1 {[%clk 0:02:27]}  Bh4 {[%clk 0:01:52]} 23. Re3 {[%clk 0:02:23]}  Rxf1+ {[%clk 0:01:48]} 24. Qxf1 {[%clk 0:02:23]}  Qg5 {[%clk 0:01:47]} 25. Qe2 {[%clk 0:02:16]}  Rf8 {[%clk 0:01:43]} 26. Rf3 {[%clk 0:02:12]}  Qc1+ {[%clk 0:01:41]} 27. Kg2 {[%clk 0:02:12]}  Rxf3 {[%clk 0:01:35]} 28. Qxf3 {[%clk 0:02:13]}  Qd2+ {[%clk 0:01:34]} 29. Ne2 {[%clk 0:02:12]}  Qxa2 {[%clk 0:01:25]} 30. e6 {[%clk 0:02:12]}  h6 {[%clk 0:01:18]} 31. Qe3 {[%clk 0:01:46]}  Be7 {[%clk 0:01:15]} 32. Kf3 {[%clk 0:01:43]}  Qc2 {[%clk 0:01:10]} 33. Nf4 {[%clk 0:01:39]}  Kh7 {[%clk 0:00:59]} 34. Qd3+ {[%clk 0:01:38]}  Qxd3+ {[%clk 0:00:59]} 35. Nxd3 {[%clk 0:01:39]}  Kg6 {[%clk 0:00:57]} 36. Ne5+ {[%clk 0:01:37]}  Kf6 {[%clk 0:00:57]} 37. Nxc6 {[%clk 0:01:38]}  Kxe6 {[%clk 0:00:56]} 38. Nxa5 {[%clk 0:01:37]}  Bb4 {[%clk 0:00:55]} 39. Nc6 {[%clk 0:01:36]}  Bc3 {[%clk 0:00:55]} 40. Ke3 {[%clk 0:01:36]}  Kd6 {[%clk 0:00:55]} 41. Ne5 {[%clk 0:01:36]}  c5 {[%clk 0:00:52]} 42. Nf3 {[%clk 0:01:33]}  g5 {[%clk 0:00:37]} 43. Kd3 {[%clk 0:01:33]}  Bb2 {[%clk 0:00:35]} 44. dxc5+ {[%clk 0:01:18]}  Kxc5 {[%clk 0:00:34]} 45. Nd4 {[%clk 0:01:19]}  Bxd4 {[%clk 0:00:33]} 46. b4+ {[%clk 0:01:19]}  Kxb4 {[%clk 0:00:33]} 47. Kxd4 {[%clk 0:01:20]}  Kb3 {[%clk 0:00:26]} 48. Kxd5 {[%clk 0:01:20]}  Kc3 {[%clk 0:00:25]} 49. Ke5 {[%clk 0:01:21]}  Kd3 {[%clk 0:00:26]} 50. Kf5 {[%clk 0:01:21]}  Ke3 {[%clk 0:00:24]} 51. Kg6 {[%clk 0:01:21]} 1-0


[Site "https://www.chess.com"]